fUST/lending_fUST_20241217
["ID","MTS","AMOUNT","RATE_DAILY","PERIOD"]
[345595927,1734375045298,-500.0,0.00027671,7]
[345595929,1734375045307,-779.01,0.00027671,7]
[345595931,1734375045317,-500.0,0.00027671,7]
[345595933,1734375045327,-6891.79,0.00027671,7]
[345595935,1734375045337,-500.0,0.00027671,7]
[345595937,1734375045347,-500.0,0.00027671,7]
[345595939,1734375045356,-500.0,0.00027671,7]
[345595941,1734375045369,-500.0,0.00027671,7]
[345595943,1734375045380,-500.0,0.00027671,2]
[345595945,1734375045389,-31737.69,0.00027671,7]
[345595947,1734375045399,-500.0,0.00027671,7]
[345595949,1734375045409,-3421.41,0.00027671,7]
[345595951,1734375045418,-500.0,0.00027671,7]
[345595953,1734375045427,-500.0,0.00027671,7]
[345595955,1734375045437,-1764.4,0.00027671,7]
[345595957,1734375045446,-1646.84,0.00027671,7]
[345595959,1734375045455,-500.0,0.00027671,7]
[345595961,1734375045464,-1109.13,0.00027671,7]
[345595963,1734375045474,-500.0,0.00027671,7]
[345595965,1734375045483,-500.0,0.00027671,7]
[345595967,1734375045492,-500.0,0.00027671,7]
[345595969,1734375045502,-500.0,0.00027671,7]
[345595971,1734375045511,-500.0,0.00027671,7]
[345595973,1734375045520,-500.0,0.00027671,7]
[345595975,1734375045530,-500.0,0.00027671,7]
[345595977,1734375045539,-500.0,0.00027671,7]
[345595979,1734375045549,-1748.72,0.00027671,7]
[345595981,1734375045558,-527.01,0.00027671,7]
[345595983,1734375045568,-500.0,0.00027671,7]
[345595985,1734375045577,-500.0,0.00027671,7]
[345595987,1734375045587,-411.34024084,0.00027671,7]
[345595989,1734375045596,-3304.76,0.00027671,7]
[345595991,1734375045606,-2183.17,0.00027671,7]
[345595994,1734375045619,-878.41,0.00027671,7]
[345595996,1734375045629,-1073.44,0.00027671,7]
[345595998,1734375045639,-500.0,0.00027671,7]
[345596000,1734375045648,-628.44,0.00027671,7]
[345596002,1734375045658,-500.0,0.00027671,7]
[345596004,1734375045668,-540.49,0.00027671,7]
[345596006,1734375045677,-656.47,0.00027671,7]
[345596008,1734375045686,-777.04,0.00027671,7]
[345596010,1734375045696,-1547.4,0.00027671,7]
[345596012,1734375045706,-1792.15,0.00027671,7]
[345596014,1734375045715,-500.0,0.00027671,7]
[345596016,1734375045725,-500.0,0.00027671,7]
[345596018,1734375045735,-1560.22,0.00027671,7]
[345596020,1734375045745,-533.76,0.00027671,7]
[345596022,1734375045755,-1054.25,0.00027671,7]
[345596024,1734375045765,-1214.07,0.00027671,7]
[345596026,1734375045775,-338.16162026,0.00027671,7]
[345596028,1734375045784,-500.0,0.00027671,7]
[345596030,1734375045794,-10268.83,0.00027671,7]
[345596032,1734375045803,-500.0,0.00027671,7]
[345596034,1734375045813,-500.0,0.00027671,7]
[345596036,1734375045822,-500.0,0.00027671,7]
[345596038,1734375045832,-5997.66,0.00027671,7]
[345596040,1734375045842,-500.0,0.00027671,7]
[345596042,1734375045851,-1630.9,0.00027671,7]
[345596044,1734375045863,-1229.59,0.00027671,7]
[345596046,1734375045873,-500.0,0.00027671,7]
[345596048,1734375045887,-603.6,0.00027671,7]
[345596050,1734375045896,-543.89304913,0.00027671,7]
[345596052,1734375045906,-243.0,0.00027671,2]
[345596054,1734375045916,-500.0,0.00027673,5]
[345596056,1734375045927,-503.64302532,0.00027673,5]
[345596058,1734375045936,-151.0,0.000278,10]
[345596060,1734375045946,-268.28590949,0.00027828,2]
[345596062,1734375045955,-188.248915,0.00027835,2]
[345596064,1734375045965,-2231.99,0.000279,2]
[345596066,1734375045976,-151.0,0.00027912,6]
[345596068,1734375045986,-500.0,0.00027945,7]
[345596070,1734375045995,-500.0,0.00027945,7]
[345596072,1734375046005,-500.0,0.00027945,7]
[345596074,1734375046015,-586.85,0.00027945,7]
[345596077,1734375046024,-729.29,0.00027945,7]
[345596080,1734375046034,-627.42,0.00027945,7]
[345596083,1734375046044,-534.77,0.00027945,7]
[345596085,1734375046053,-500.0,0.00027945,7]
[345596087,1734375046062,-500.0,0.00027945,7]
[345596089,1734375046072,-500.0,0.00027945,7]
[345596114,1734375046228,-500.0,0.00027945,7]
[345596116,1734375046238,-500.0,0.00027945,7]
[345596118,1734375046248,-639.29,0.00027945,7]
[345596120,1734375046257,-540.33,0.00027945,7]
[345596122,1734375046267,-1630.59,0.00027945,7]
[345596124,1734375046276,-500.0,0.00027945,7]
[345596126,1734375046286,-500.0,0.00027945,7]
[345596128,1734375046295,-500.0,0.00027945,7]
[345596130,1734375046306,-168.0,0.00027945,7]
[345596132,1734375046316,-500.0,0.00027945,7]
[345596135,1734375046326,-500.0,0.00027945,7]
[345596138,1734375046336,-500.0,0.00027945,7]
[345596141,1734375046345,-1069.21,0.00027945,7]
[345596143,1734375046354,-500.0,0.00027945,7]
[345596145,1734375046367,-500.0,0.00027945,7]
[345596146,1734375046377,-500.0,0.00027945,2]
[345596147,1734375046386,-500.0,0.00027945,7]
[345596148,1734375046396,-1265.88,0.00027945,2]
[345596149,1734375046405,-522.43,0.00027945,7]
[345596150,1734375046414,-660.45,0.00027945,7]
[345596151,1734375046424,-506.07,0.00027945,7]
[345596152,1734375046433,-500.0,0.00027945,7]
[345596153,1734375046444,-1525.74,0.00027945,7]
[345596154,1734375046453,-839.95,0.00027945,7]
[345596155,1734375046463,-500.0,0.00027945,7]
[345596157,1734375046473,-1000.0,0.00027945,2]
[345596159,1734375046482,-500.0,0.00027945,7]
[345596161,1734375046492,-500.0,0.00027945,7]
[345596163,1734375046501,-680.28,0.00027945,7]
[345596165,1734375046511,-500.0,0.00027945,7]
[345596167,1734375046521,-961.44,0.00027945,7]
[345596169,1734375046531,-500.0,0.00027945,7]
[345596171,1734375046541,-691.97,0.00027945,7]
[345596173,1734375046550,-500.0,0.00027945,7]
[345596175,1734375046560,-500.0,0.00027945,7]
[345596177,1734375046569,-500.0,0.00027945,7]
[345596179,1734375046579,-500.0,0.00027945,7]
[345596181,1734375046588,-566.97,0.00027945,7]
[345596183,1734375046598,-655.12,0.00027945,7]
[345596185,1734375046607,-500.0,0.00027945,7]
[345596187,1734375046622,-500.0,0.00027945,7]
[345596189,1734375046632,-474.24610976,0.00027945,7]
[345596191,1734375046641,-500.0,0.00027945,7]
[345596193,1734375046651,-2456.17,0.00027945,5]
[345596195,1734375046662,-500.0,0.00027945,7]
[345596197,1734375046671,-500.0,0.00027945,7]
[345596199,1734375046680,-1177.99,0.00027945,7]
[345596201,1734375046690,-500.0,0.00027945,7]
[345596203,1734375046700,-500.0,0.00027945,7]
[345596205,1734375046709,-779.01,0.00027945,7]
[345596208,1734375046719,-500.0,0.00027945,7]
[345596210,1734375046728,-6891.79,0.00027945,7]
[345596212,1734375046738,-500.0,0.00027945,7]
[345596214,1734375046748,-500.0,0.00027945,7]
[345596216,1734375046758,-500.0,0.00027945,7]
[345596218,1734375046768,-500.0,0.00027945,7]
[345596220,1734375046778,-500.0,0.00027945,2]
[345596222,1734375046788,-31737.69,0.00027945,7]
[345596224,1734375046798,-500.0,0.00027945,7]
[345596226,1734375046808,-3421.41,0.00027945,7]
[345596228,1734375046817,-628.30669717,0.00027945,7]
[345596230,1734375046827,-1764.4,0.00027945,7]
[345596232,1734375046836,-1646.84,0.00027945,7]
[345596234,1734375046845,-500.0,0.00027945,7]
[345596236,1734375046854,-1109.13,0.00027945,7]
[345596238,1734375046867,-500.0,0.00027945,7]
[345596240,1734375046877,-500.0,0.00027945,7]
[345596242,1734375046887,-500.0,0.00027945,7]
[345596244,1734375046901,-500.0,0.00027945,7]
[345596246,1734375046910,-500.0,0.00027945,7]
[345596248,1734375046920,-500.0,0.00027945,7]
[345596250,1734375046929,-500.0,0.00027945,7]
[345596253,1734375046940,-500.0,0.00027945,7]
[345596254,1734375046949,-1748.72,0.00027945,7]
[345596256,1734375046959,-527.01,0.00027945,7]
[345596259,1734375046969,-500.0,0.00027945,7]
[345596260,1734375046978,-500.0,0.00027945,7]
[345596262,1734375046987,-3304.76,0.00027945,7]
[345596264,1734375046998,-2183.17,0.00027945,7]
[345596266,1734375047008,-878.41,0.00027945,7]
[345596269,1734375047017,-1073.44,0.00027945,7]
[345596271,1734375047027,-500.0,0.00027945,7]
[345596273,1734375047037,-628.44,0.00027945,7]
[345596275,1734375047046,-500.0,0.00027945,7]
[345596277,1734375047056,-540.49,0.00027945,7]
[345596279,1734375047065,-656.47,0.00027945,7]
[345596281,1734375047075,-777.04,0.00027945,7]
[345596283,1734375047084,-1547.4,0.00027945,7]
[345596285,1734375047094,-1792.15,0.00027945,7]
[345596287,1734375047104,-500.0,0.00027945,7]
[345596289,1734375047116,-500.0,0.00027945,7]
[345596291,1734375047131,-1560.22,0.00027945,7]
[345596293,1734375047141,-533.76,0.00027945,7]
[345596295,1734375047151,-1054.25,0.00027945,7]
[345596297,1734375047160,-1214.07,0.00027945,7]
[345596299,1734375047171,-500.0,0.00027945,7]
[345596301,1734375047180,-10268.83,0.00027945,7]
[345596303,1734375047189,-500.0,0.00027945,7]
[345596305,1734375047199,-500.0,0.00027945,7]
[345596307,1734375047208,-500.0,0.00027945,7]
[345596309,1734375047217,-5997.66,0.00027945,7]
[345596311,1734375047227,-500.0,0.00027945,7]
[345596313,1734375047236,-1630.9,0.00027945,7]
[345596315,1734375047246,-1229.59,0.00027945,7]
[345596317,1734375047255,-500.0,0.00027945,7]
[345596319,1734375047265,-603.6,0.00027945,7]
[345596321,1734375047274,-162.7,0.00028,2]
[345596324,1734375047283,-151.0,0.00028,16]
[345596326,1734375047293,-300.0,0.00028,13]
[345596327,1734375047303,-500.0,0.00028011,2]
[345596329,1734375047311,-500.0,0.00028011,2]
[345596331,1734375047321,-500.0,0.00028011,2]
[345596333,1734375047331,-350.14647798,0.00028011,2]
[345596335,1734375047341,-1530.19,0.00028012,15]
[345596337,1734375047350,-151.0,0.000281,7]
[345596339,1734375047363,-549.146,0.0002811,2]
[345596341,1734375047372,-268.28590949,0.00028168,2]
[345596343,1734375047383,-151.0,0.00028191,7]
[345596346,1734375047392,-151.0,0.000282,16]
[345596348,1734375047402,-420.0,0.00028208,2]
[345596350,1734375047412,-151.0,0.00028219,7]
[345596352,1734375047421,-151.0,0.00028219,7]
[345596354,1734375047430,-500.0,0.00028219,7]
[345596356,1734375047439,-500.0,0.00028219,7]
[345596358,1734375047449,-500.0,0.00028219,7]
[345596360,1734375047458,-586.85,0.00028219,7]
[345596362,1734375047468,-729.29,0.00028219,7]
[345596364,1734375047477,-627.42,0.00028219,7]
[345596366,1734375047486,-534.77,0.00028219,7]
[345596368,1734375047495,-500.0,0.00028219,7]
[345596370,1734375047504,-500.0,0.00028219,7]
[345596372,1734375047514,-500.0,0.00028219,7]
[345596374,1734375047524,-500.0,0.00028219,7]
[345596376,1734375047534,-500.0,0.00028219,7]
[345596378,1734375047543,-639.29,0.00028219,7]
[345596380,1734375047552,-540.33,0.00028219,7]
[345596382,1734375047564,-1630.59,0.00028219,7]
[345596384,1734375047573,-500.0,0.00028219,7]
[345596386,1734375047583,-362.89166805,0.00028219,7]
[345596388,1734375047593,-500.0,0.00028219,7]
[345596390,1734375047602,-168.0,0.00028219,7]
[345596392,1734375047611,-500.0,0.00028219,7]
[345596394,1734375047621,-500.0,0.00028219,7]
[345596396,1734375047630,-500.0,0.00028219,7]
[345596398,1734375047640,-1069.21,0.00028219,7]
[345596400,1734375047649,-500.0,0.00028219,7]
[345596402,1734375047658,-500.0,0.00028219,7]
[345596404,1734375047667,-494.30826148,0.00028219,2]
[345596406,1734375047676,-500.0,0.00028219,7]
[345596408,1734375047686,-1265.88,0.00028219,2]
[345596410,1734375047695,-522.43,0.00028219,7]
[345596412,1734375047704,-660.45,0.00028219,7]
[345596414,1734375047714,-506.07,0.00028219,7]
[345596416,1734375047723,-500.0,0.00028219,7]
[345596418,1734375047732,-1525.74,0.00028219,7]
[345596420,1734375047742,-839.95,0.00028219,7]
[345596422,1734375047751,-500.0,0.00028219,7]
[345596424,1734375047761,-1000.0,0.00028219,2]
[345596426,1734375047772,-500.0,0.00028219,7]
[345596428,1734375047782,-500.0,0.00028219,7]
[345596430,1734375047791,-680.28,0.00028219,7]
[345596432,1734375047800,-500.0,0.00028219,7]
[345596434,1734375047809,-961.44,0.00028219,7]
[345596436,1734375047819,-500.0,0.00028219,7]
[345596438,1734375047828,-691.97,0.00028219,7]
[345596440,1734375047837,-500.0,0.00028219,7]
[345596442,1734375047848,-500.0,0.00028219,7]
[345596444,1734375047858,-500.0,0.00028219,7]
[345596446,1734375047882,-500.0,0.00028219,7]
[345596448,1734375047891,-566.97,0.00028219,7]
[345596450,1734375047901,-655.12,0.00028219,7]
[345596452,1734375047910,-500.0,0.00028219,7]
[345596455,1734375047920,-500.0,0.00028219,7]
[345596457,1734375047931,-500.0,0.00028219,7]
[345596458,1734375047940,-2456.17,0.00028219,5]
[345596461,1734375047950,-500.0,0.00028219,7]
[345596462,1734375047959,-500.0,0.00028219,7]
[345596464,1734375047969,-1177.99,0.00028219,7]
[345596467,1734375047979,-514.53254049,0.00028219,7]
[345596468,1734375047988,-500.0,0.00028219,7]
[345596471,1734375047998,-779.01,0.00028219,7]
[345596473,1734375048008,-500.0,0.00028219,7]
[345596475,1734375048017,-6891.79,0.00028219,7]
[345596477,1734375048027,-337.32991606,0.00028219,7]
[345596479,1734375048036,-500.0,0.00028219,7]
[345596480,1734375048045,-500.0,0.00028219,7]
[345596483,1734375048055,-500.0,0.00028219,7]
[345596485,1734375048066,-500.0,0.00028219,2]
[345596487,1734375048075,-31737.69,0.00028219,7]
[345596489,1734375048085,-500.0,0.00028219,7]
[345596491,1734375048094,-3421.41,0.00028219,7]
[345596493,1734375048104,-1764.4,0.00028219,7]
[345596495,1734375048113,-1646.84,0.00028219,7]
[345596497,1734375048123,-500.0,0.00028219,7]
[345596499,1734375048132,-1109.13,0.00028219,7]
[345596501,1734375048141,-489.03826431,0.00028219,7]
[345596503,1734375048151,-422.85334935,0.00028219,7]
[345596505,1734375048160,-500.0,0.00028219,7]
[345596507,1734375048169,-500.0,0.00028219,7]
[345596509,1734375048179,-500.0,0.00028219,7]
[345596511,1734375048189,-500.0,0.00028219,7]
[345596513,1734375048199,-500.0,0.00028219,7]
[345596515,1734375048209,-500.0,0.00028219,7]
[345596517,1734375048218,-1748.72,0.00028219,7]
[345596519,1734375048228,-527.01,0.00028219,7]
[345596521,1734375048239,-500.0,0.00028219,7]
[345596523,1734375048250,-500.0,0.00028219,7]
[345596525,1734375048259,-3304.76,0.00028219,7]
[345596527,1734375048268,-2183.17,0.00028219,7]
[345596529,1734375048278,-878.41,0.00028219,7]
[345596531,1734375048287,-1073.44,0.00028219,7]
[345596532,1734375048297,-500.0,0.00028219,7]
[345596535,1734375048308,-628.44,0.00028219,7]
[345596537,1734375048318,-500.0,0.00028219,7]
[345596539,1734375048327,-540.49,0.00028219,7]
[345596541,1734375048337,-656.47,0.00028219,7]
[345596543,1734375048347,-777.04,0.00028219,7]
[345596545,1734375048356,-1547.4,0.00028219,7]
[345596546,1734375048366,-1792.15,0.00028219,7]
[345596549,1734375048376,-500.0,0.00028219,7]
[345596551,1734375048385,-500.0,0.00028219,7]
[345596553,1734375048395,-1560.22,0.00028219,7]
[345596555,1734375048405,-533.76,0.00028219,7]
[345596557,1734375048415,-1054.25,0.00028219,7]
[345596559,1734375048425,-1214.07,0.00028219,7]
[345596561,1734375048434,-500.0,0.00028219,7]
[345596563,1734375048444,-10268.83,0.00028219,7]
[345596565,1734375048453,-500.0,0.00028219,7]
[345596567,1734375048462,-500.0,0.00028219,7]
[345596569,1734375048472,-500.0,0.00028219,7]
[345596570,1734375048481,-5997.66,0.00028219,7]
[345596573,1734375048491,-500.0,0.00028219,7]
[345596575,1734375048501,-1630.9,0.00028219,7]
[345596577,1734375048511,-1229.59,0.00028219,7]
[345596579,1734375048520,-500.0,0.00028219,7]
[345596581,1734375048530,-603.6,0.00028219,7]
[345596583,1734375048540,-151.0,0.000284,18]
[345596585,1734375048550,-664.0,0.000284,120]
[345596586,1734375048560,-152.17,0.000284,31]
[345596589,1734375048571,-152.17,0.000284,31]
[345596591,1734375048581,-152.17,0.000284,31]
[345596592,1734375048591,-152.17,0.000284,31]
[345596593,1734375048600,-152.17,0.000284,31]
[345596594,1734375048610,-152.17,0.000284,31]
[345596595,1734375048619,-152.17,0.000284,31]
[345596596,1734375048628,-152.17,0.000284,31]
[345596597,1734375048638,-152.17,0.000284,31]
[345596598,1734375048647,-151.0,0.00028471,7]
[345596599,1734375048657,-151.0,0.00028493,7]
[345596600,1734375048666,-151.0,0.00028493,7]
[345596601,1734375048675,-154.773683,0.00028493,7]
[345596602,1734375048684,-218.63437134,0.00028493,7]
[345596603,1734375048694,-500.0,0.00028493,7]
[345596605,1734375048704,-500.0,0.00028493,7]
[345596607,1734375048714,-586.85,0.00028493,7]
[345596609,1734375048724,-729.29,0.00028493,7]
[345596611,1734375048733,-627.42,0.00028493,7]
[345596613,1734375048743,-534.77,0.00028493,7]
[345596615,1734375048752,-500.0,0.00028493,7]
[345596617,1734375048762,-500.0,0.00028493,7]
[345596619,1734375048772,-500.0,0.00028493,7]
[345596621,1734375048782,-500.0,0.00028493,7]
[345596623,1734375048792,-500.0,0.00028493,7]
[345596625,1734375048802,-639.29,0.00028493,7]
[345596627,1734375048812,-540.33,0.00028493,7]
[345596629,1734375048822,-1630.59,0.00028493,7]
[345596631,1734375048832,-500.0,0.00028493,7]
[345596633,1734375048841,-500.0,0.00028493,7]
[345596635,1734375048852,-168.0,0.00028493,7]
[345596637,1734375048862,-500.0,0.00028493,7]
[345596639,1734375048895,-500.0,0.00028493,7]
[345596642,1734375048906,-500.0,0.00028493,7]
[345596644,1734375048918,-1069.21,0.00028493,7]
[345596646,1734375048931,-500.0,0.00028493,7]
[345596648,1734375048940,-500.0,0.00028493,7]
[345596649,1734375048950,-500.0,0.00028493,7]
[345596652,1734375048960,-1265.88,0.00028493,2]
[345596654,1734375048971,-522.43,0.00028493,7]
[345596655,1734375048981,-660.45,0.00028493,7]
[345596658,1734375048991,-506.07,0.00028493,7]
[345596659,1734375049001,-500.0,0.00028493,7]
[345596661,1734375049011,-1525.74,0.00028493,7]
[345596663,1734375049020,-839.95,0.00028493,7]
[345596665,1734375049030,-500.0,0.00028493,7]
[345596667,1734375049039,-1000.0,0.00028493,2]
[345596670,1734375049050,-500.0,0.00028493,7]
[345596672,1734375049060,-500.0,0.00028493,7]
[345596674,1734375049070,-680.28,0.00028493,7]
[345596676,1734375049080,-500.0,0.00028493,7]
[345596678,1734375049090,-961.44,0.00028493,7]
[345596680,1734375049101,-500.0,0.00028493,7]
[345596682,1734375049111,-691.97,0.00028493,7]
[345596684,1734375049120,-500.0,0.00028493,7]
[345596686,1734375049130,-500.0,0.00028493,7]
[345596701,1734375049273,-500.0,0.00028493,7]
[345596703,1734375049284,-500.0,0.00028493,7]
[345596705,1734375049294,-566.97,0.00028493,7]
[345596707,1734375049304,-655.12,0.00028493,7]
[345596709,1734375049314,-473.94085575,0.00028493,7]
[345596711,1734375049324,-500.0,0.00028493,7]
[345596713,1734375049333,-586.17592458,0.00028493,7]
[345596715,1734375049343,-2456.17,0.00028493,5]
[345596717,1734375049352,-500.0,0.00028493,7]
[345596719,1734375049362,-500.0,0.00028493,7]
[345596721,1734375049372,-1177.99,0.00028493,7]
[345596723,1734375049382,-500.0,0.00028493,7]
[345596725,1734375049391,-779.01,0.00028493,7]
[345596727,1734375049400,-500.0,0.00028493,7]
[345596729,1734375049410,-6891.79,0.00028493,7]
[345596731,1734375049419,-500.0,0.00028493,7]
[345596733,1734375049429,-500.0,0.00028493,7]
[345596735,1734375049439,-500.0,0.00028493,7]
[345596737,1734375049450,-500.0,0.00028493,2]
[345596739,1734375049459,-31737.69,0.00028493,7]
[345596741,1734375049469,-361.69785167,0.00028493,7]
[345596743,1734375049478,-3421.41,0.00028493,7]
[345596745,1734375049487,-1764.4,0.00028493,7]
[345596747,1734375049497,-1646.84,0.00028493,7]
[345596749,1734375049506,-500.0,0.00028493,7]
[345596751,1734375049516,-1109.13,0.00028493,7]
[345596753,1734375049525,-500.0,0.00028493,7]
[345596755,1734375049534,-500.0,0.00028493,7]
[345596757,1734375049544,-500.0,0.00028493,7]
[345596759,1734375049553,-500.0,0.00028493,7]
[345596761,1734375049562,-500.0,0.00028493,7]
[345596763,1734375049572,-500.0,0.00028493,7]
[345596765,1734375049581,-1748.72,0.00028493,7]
[345596767,1734375049591,-527.01,0.00028493,7]
[345596769,1734375049600,-500.0,0.00028493,7]
[345596771,1734375049610,-500.0,0.00028493,7]
[345596773,1734375049619,-3304.76,0.00028493,7]
[345596775,1734375049628,-2183.17,0.00028493,7]
[345596777,1734375049638,-878.41,0.00028493,7]
[345596779,1734375049647,-1073.44,0.00028493,7]
[345596781,1734375049657,-500.0,0.00028493,7]
[345596783,1734375049668,-628.44,0.00028493,7]
[345596785,1734375049678,-500.0,0.00028493,7]
[345596787,1734375049690,-540.49,0.00028493,7]
[345596789,1734375049702,-656.47,0.00028493,7]
[345596791,1734375049712,-777.04,0.00028493,7]
[345596793,1734375049725,-1547.4,0.00028493,7]
[345596795,1734375049735,-1792.15,0.00028493,7]
[345596797,1734375049746,-500.0,0.00028493,7]
[345596798,1734375049755,-500.0,0.00028493,7]
[345596800,1734375049765,-1560.22,0.00028493,7]
[345596802,1734375049775,-533.76,0.00028493,7]
[345596804,1734375049785,-1054.25,0.00028493,7]
[345596805,1734375049795,-1214.07,0.00028493,7]
[345596807,1734375049804,-500.0,0.00028493,7]
[345596809,1734375049814,-10268.83,0.00028493,7]
[345596810,1734375049823,-500.0,0.00028493,7]
[345596812,1734375049832,-500.0,0.00028493,7]
[345596814,1734375049841,-500.0,0.00028493,7]
[345596815,1734375049851,-5997.66,0.00028493,7]
[345596817,1734375049860,-500.0,0.00028493,7]
[345596819,1734375049870,-1630.9,0.00028493,7]
[345596820,1734375049881,-1229.59,0.00028493,7]
[345596822,1734375049892,-500.0,0.00028493,7]
[345596824,1734375049901,-603.6,0.00028493,7]
[345596826,1734375049911,-268.28590949,0.00028509,2]
[345596827,1734375049922,-151.0,0.000286,18]
[345596829,1734375049932,-600.0,0.00028602,2]
[345596831,1734375049941,-420.0,0.00028673,2]
[345596832,1734375049952,-151.0,0.000287,7]
[345596834,1734375049962,-151.0,0.000287,7]
[345596836,1734375049972,-152.17,0.000287,31]
[345596838,1734375049982,-152.17,0.000287,31]
[345596839,1734375049991,-152.17,0.000287,31]
[345596841,1734375050001,-152.17,0.000287,31]
[345596843,1734375050010,-152.17,0.000287,31]
[345596844,1734375050019,-152.17,0.000287,31]
[345596846,1734375050029,-152.17,0.000287,31]
[345596848,1734375050039,-152.17,0.000287,31]
[345596849,1734375050049,-152.17,0.000287,31]
[345596851,1734375050058,-152.17,0.000287,31]
[345596853,1734375050068,-152.17,0.000287,31]
[345596855,1734375050077,-152.17,0.000287,31]
[345596857,1734375050086,-152.17,0.000287,31]
[345596858,1734375050096,-152.17,0.000287,31]
[345596860,1734375050105,-152.17,0.000287,31]
[345596862,1734375050115,-152.17,0.000287,31]
[345596864,1734375050124,-152.17,0.000287,31]
[345596866,1734375050135,-152.17,0.000287,31]
[345596867,1734375050145,-151.0,0.0002875,7]
[345596869,1734375050154,-500.0,0.00028767,7]
[345596871,1734375050164,-500.0,0.00028767,7]
[345596873,1734375050185,-586.85,0.00028767,7]
[345596875,1734375050194,-729.29,0.00028767,7]
[345596876,1734375050203,-627.42,0.00028767,7]
[345596878,1734375050213,-534.77,0.00028767,7]
[345596880,1734375050225,-500.0,0.00028767,7]
[345596882,1734375050235,-500.0,0.00028767,9]
[345596884,1734375050245,-500.0,0.00028767,7]
[345596885,1734375050255,-500.0,0.00028767,7]
[345596887,1734375050266,-500.0,0.00028767,7]
[345596889,1734375050276,-639.29,0.00028767,7]
[345596891,1734375050285,-540.33,0.00028767,7]
[345596892,1734375050294,-1630.59,0.00028767,7]
[345596894,1734375050304,-311.5090114,0.00028767,7]
[345596896,1734375050314,-500.0,0.00028767,7]
[345596898,1734375050323,-168.0,0.00028767,7]
[345596899,1734375050333,-500.0,0.00028767,7]
[345596901,1734375050344,-500.0,0.00028767,7]
[345596903,1734375050354,-500.0,0.00028767,7]
[345596905,1734375050363,-1069.21,0.00028767,7]
[345596907,1734375050373,-500.0,0.00028767,7]
[345596908,1734375050383,-500.0,0.00028767,7]
[345596910,1734375050392,-500.0,0.00028767,7]
[345596912,1734375050402,-1265.88,0.00028767,2]
[345596914,1734375050413,-522.43,0.00028767,7]
[345596916,1734375050423,-660.45,0.00028767,7]
[345596917,1734375050433,-506.07,0.00028767,7]
[345596919,1734375050443,-500.0,0.00028767,7]
[345596921,1734375050453,-1525.74,0.00028767,7]
[345596923,1734375050463,-839.95,0.00028767,7]
[345596925,1734375050473,-500.0,0.00028767,7]
[345596926,1734375050482,-1000.0,0.00028767,2]
[345596928,1734375050491,-500.0,0.00028767,7]
[345596930,1734375050501,-500.0,0.00028767,7]
[345596932,1734375050511,-680.28,0.00028767,7]